{"text_format":"3","workbook":"xlsx","n_sheets":2,"sheets":["LUMP SUM FORM","SHEET 2"],"not_rendered":{"defined_names":8},"read":"whole","date_system":"1900"}

{"sheet":"LUMP SUM FORM","index":0,"n_rows":45,"n_cols":5,"rows_kept":45,"merged":[[0,0,1,5],[2,0,2,5],[3,0,3,5],[4,0,4,5],[5,0,5,5],[6,0,6,5],[7,0,7,5],[8,0,8,5],[9,0,9,5],[10,0,10,5],[11,0,11,5],[12,0,12,5],[13,1,13,5],[14,1,14,5],[15,1,15,5],[16,1,16,5],[17,0,17,5],[18,0,18,5],[19,0,19,5],[20,0,20,5],[21,0,21,5],[22,0,22,5],[23,0,23,5],[24,0,24,5],[25,0,25,5],[26,0,26,5],[27,0,27,5],[28,0,28,5],[29,0,29,5],[30,0,30,5],[31,0,31,5],[32,0,32,5],[33,0,33,5],[34,0,34,5],[35,0,35,5],[36,0,36,5],[37,0,37,5],[38,0,38,5],[39,0,39,5],[40,0,40,5],[41,0,41,5],[42,0,42,5],[43,0,43,5],[44,1,44,2],[44,4,44,5]]}
["Attachment A - Pricing Sheet\t\t\t"]
[]
["Alcova Heights Park Renovation Phase 1 -  Bid Pricing Sheet"]
["22-DPR-ITB-479 "]
["FURNISHING ALL LABOR, MATERIALS AND EQUIPMENT FOR THE CONSTRUCTION OF THE"]
["ENCLOSED PARK IMPROVEMENTS AT ALCOVA HEIGHTS PARK LOCATED AT 901 SOUTH GEORGE MASON DRIVE IN ARLINGTON, VIRGINIA"]
["\n1. Bidders shall read and check off each of the statements below to indicate that they have read and fully understand the instructions and what is required. \n"]
["Statements:"]
["This shall be a LUMP SUM contract. "]
["The lowest responsible bidder shall be identified based on LUMP SUM GRAND TOTAL price as written below."]
["Bidders are fully responsible for ensuring that the LUMP SUM PRICE covers all the work necessary to complete the work as described and shown on the drawings and specifications."]
["The cost for MOBILIZATION BID shall NOT exceed 3% of the total LUMP SUM BID excluding the bid for mobilization."]
["Shall any information not be clear, it is the responsibility of the Bidder to request clarification during the allowed time/period."]
["LUMP SUM BID:","_______________________________________________________"]
["MOBILIZATION BID:","_______________________________________________________"]
["LUMP SUM GRAND TOTAL BID:","_______________________________________________________"]
[null,"IN WORDS: _____________________________________________________________________________________________________"]
{"$rows_empty":27}
["COMPANY NAME:","___________________________________________________",null,"DATE:","_______________________________"]

{"sheet":"SHEET 2","index":1,"n_rows":30,"n_cols":5,"rows_kept":30,"hidden":true,"merged":[[0,0,0,4],[1,0,1,4],[2,0,2,4],[3,0,3,4],[4,0,4,4],[5,0,5,4],[6,0,6,4],[7,1,7,3],[8,1,8,3],[9,1,9,3],[10,1,10,3],[11,1,11,3],[12,1,12,3],[13,1,13,3],[14,1,14,3],[15,1,15,3],[16,1,16,3],[17,1,17,3],[18,1,18,3],[19,1,19,3],[20,1,20,3],[21,1,21,3],[22,1,22,3],[23,1,23,3],[24,1,24,3],[25,1,25,3],[26,0,26,3],[27,0,27,3],[28,1,28,3],[29,0,29,3]]}
[]
["SHEET 2"]
["Gunston Park Enclosed Athletic Facility Improvements - Schedule of Values"]
["21-DPR-ITB-356"]
["FURNISHING ALL LABOR, MATERIALS AND EQUIPMENT FOR THE "]
["ENCLOSED ATHLETIC FACILITY AT GUNSTON PARK LOCATED AT 1401 SOUTH 28TH STREET IN ARLINGTON, VIRGINIA"]
[]
["SPECIFICATION SECTION NO.","ITEM DESCRIPTION",null,null,"PRICE"]
["011000","PERMITS - Include but not limited to permits such as electrical, plumbing and all other trades necessary to complete the work. Building, LDA and VSMP shall be provided by Arlington County. These shall be excluded.",null,null,{"$f":"'LUMP SUM FORM'!#REF!","v":{"$error":"#REF!"}}]
["024119 311000","SITE CLEARING, DEMOLITION, AND REMOVALS ","LS",null,{"$f":"SUM('LUMP SUM FORM'!#REF!)","v":{"$error":"#REF!"}}]
["033000","CAST IN PLACE CONCRETE ",null,null,{"$f":"SUM('LUMP SUM FORM'!#REF!)","v":{"$error":"#REF!"}}]
["084113","FRAMED ENTRANCES ",null,null,{"$f":"SUM('LUMP SUM FORM'!#REF!)","v":{"$error":"#REF!"}}]
["089119","FIXED LOUVERS ",null,null,{"$f":"SUM('LUMP SUM FORM'!#REF!)","v":{"$error":"#REF!"}}]
["099113    099123","PAINTING ",null,null,{"$f":"SUM('LUMP SUM FORM'!#REF!)","v":{"$error":"#REF!"}}]
["116643","ELECTRIC SCOREBOARD ",null,null,{"$f":"SUM('LUMP SUM FORM'!#REF!)","v":{"$error":"#REF!"}}]
["APPENDIX","SPECIAL CONSTRUCTION: PRE-ENGINEERED MEMBRANE STRUCTURE INSTALLATION (STRUCTURE PROVIDED BY THE COUNTY) - Includes but not limited to coordination of delivery from manufacturer and installation, per  manufacturer's recommendation, drawings and specifications.",null,null,{"$f":"SUM('LUMP SUM FORM'!#REF!)","v":{"$error":"#REF!"}}]
["220500 220517 220523 220529 220553 220719 221005 221113 224000 ","PLUMBING","LS",null,{"$f":"SUM('LUMP SUM FORM'!#REF!)","v":{"$error":"#REF!"}}]
["230500 230548 230553 231123 233100 233300 233413 233423 233700 235533 238200 238300","HEATING, VENTILATING AND AIR CONDITIONING (HVAC)  ","LS",null,{"$f":"SUM('LUMP SUM FORM'!#REF!)","v":{"$error":"#REF!"}}]
["260500 260519 260526 260529 260533.13 260533.16 260553 260923 262100 262200 262416 262726 265100 265600","ELECTRICAL ","LS",null,{"$f":"SUM('LUMP SUM FORM'!F14:F17)","v":{"v":0,"d":"$0.00"}}]
["310000","EARTHWORK",null,null,{"$f":"SUM('LUMP SUM FORM'!#REF!)","v":{"$error":"#REF!"}}]
["311300","TREE PROTECTION AND ROOT PRUNING",null,null,{"$f":"SUM('LUMP SUM FORM'!#REF!)","v":{"$error":"#REF!"}}]
["312500","TEMPORARY EROSION AND SEDIMENT CONTROL ",null,null,{"$f":"SUM('LUMP SUM FORM'!#REF!)","v":{"$error":"#REF!"}}]
[321313,"CONCRETE PAVEMENT ",null,null,{"$f":"SUM('LUMP SUM FORM'!#REF!)","v":{"$error":"#REF!"}}]
[323113,"CHAIN LINK FENCES AND GATES ",null,null,{"$f":"SUM('LUMP SUM FORM'!#REF!)","v":{"$error":"#REF!"}}]
["329200","SEEDING, SODDING, AND TOPSOIL ",null,null,{"$f":"SUM('LUMP SUM FORM'!#REF!)","v":{"$error":"#REF!"}}]
["334000","STORM DRAINAGE ",null,null,{"$f":"SUM('LUMP SUM FORM'!#REF!)","v":{"$error":"#REF!"}}]
["SUBTOTAL  PRICE (DOES NOT INCLUDE MOBILIZATION):",{"$nulls":3},{"$f":"SUM(E9:E26)","v":{"$error":"#REF!"}}]
["THREE PERCENT (3%) OF SUBTOTAL PRICE:",{"$nulls":3},{"$f":"SUM(E27)*0.03","v":{"$error":"#REF!"}}]
["012000","MOBILIZATION - Not to exceed three percent (3%) of the SUBTOTAL PRICE.",null,null,{"$f":"E28","v":{"$error":"#REF!"}}]
["LUMP SUM GRAND TOTAL:",{"$nulls":3},{"$f":"SUM(E27,E29)","v":{"$error":"#REF!"}}]